fUSD/lending_fUSD_20260321
["ID","MTS","AMOUNT","RATE_DAILY","PERIOD"]
[408658966,1774065042330,-1894.74671749,0.00019185,7]
[408658967,1774065042340,-150.0,0.00019537,2]
[408658968,1774065042350,-170.66669499,0.00019537,2]
[408658969,1774065042360,-350.435836,0.00019857,7]
[408658970,1774065042369,-169.00240752,0.0002,120]
[408658971,1774065042379,-4815.35220567,0.0002,2]
[408658972,1774065042393,-195.0,0.0002,2]
[408658973,1774065042402,-200.0,0.0002,2]
[408658974,1774065042412,-200.0,0.0002,2]
[408658975,1774065042422,-326.24637333,0.00020318,2]
[408658976,1774065042434,-251.17975102,0.00020434,2]
[408658977,1774065042444,-2245.79809039,0.00020629,13]
[408658978,1774065042454,-440.81,0.00020632,2]
[408658979,1774065042465,-2000.0,0.00020755,2]
[408658980,1774065042475,-177.98,0.00020834,2]
[408658982,1774065042485,-515.07,0.00020834,2]
[408658983,1774065042495,-300.04140168,0.00021,120]
[408658984,1774065042505,-304.0,0.00021033,10]
[408658985,1774065042514,-256.70914559,0.00021085,2]
[408658986,1774065042524,-979.16666667,0.00021137,2]
[408658987,1774065042533,-3261.56809751,0.00021233,2]
[408658988,1774065042543,-515.07,0.00021355,2]
[408658989,1774065042553,-440.82152138,0.00021664,2]
[408658990,1774065042563,-515.07,0.00021876,2]
[408658991,1774065042573,-5000.0,0.00021918,2]
[408658992,1774065042582,-161.0,0.00021918,2]
[408658993,1774065042591,-153.57,0.00021968,2]
[408658994,1774065042601,-916.0,0.00022023,10]
[408658995,1774065042611,-2502.79871176,0.00022074,19]
[408658996,1774065042621,-515.07,0.00022397,2]
[408658997,1774065042631,-2000.0,0.00022642,2]
[408658998,1774065042640,-2000.0,0.000229,2]
[408658999,1774065042650,-515.07,0.00022918,2]
[408659000,1774065042661,-251.17975102,0.00023352,2]
[408659001,1774065042670,-3261.56809751,0.000239,2]
[408659002,1774065042680,-177.98,0.00024307,2]
[408659003,1774065042690,-2130.0,0.00024658,120]
[408659004,1774065042700,-1000.0,0.00024658,2]
[408659005,1774065042709,-326.24637333,0.00024762,2]
[408659006,1774065042719,-439.78,0.000249,7]
[408659007,1774065042729,-3051.34665775,0.00024962,30]
[408659008,1774065042739,-251.17975102,0.00026269,2]
[408659009,1774065042749,-256.70914559,0.00026269,2]
[408659010,1774065042759,-3110.85070603,0.00026407,34]
[408659011,1774065042769,-1011.0,0.00026504,120]
[408659012,1774065042778,-708.0,0.00026504,120]
[408659013,1774065042788,-496.0,0.00026504,120]
[408659014,1774065042797,-347.0,0.00026504,120]
[408659015,1774065042807,-3261.56809751,0.00026567,2]
[408659016,1774065042817,-2000.0,0.000266,2]
[408659017,1774065042827,-300.0,0.00027397,2]
[408659018,1774065042836,-1000.0,0.00027397,20]
[408659019,1774065042845,-15648.28,0.00027397,10]
[408659020,1774065042854,-13040.23,0.00027397,10]
[408659021,1774065042863,-10866.86,0.00027397,10]
[408659022,1774065042873,-979.16666667,0.000274,10]
[408659023,1774065042883,-208.0,0.00027558,120]
[408659024,1774065042893,-162.0,0.00027558,120]
[408659025,1774065042903,-162.0,0.00027577,120]
[408659026,1774065042913,-163.0,0.00027577,120]
[408659027,1774065042923,-177.98,0.00027779,120]
[408659028,1774065042932,-1011.0,0.00027829,120]
[408659029,1774065042942,-708.0,0.00027829,120]
[408659030,1774065042951,-496.0,0.00027829,120]
[408659031,1774065042961,-347.0,0.00027829,120]
[408659032,1774065042971,-3454.1209415,0.00027851,38]
[408659033,1774065042980,-152.0,0.00028641,3]
[408659034,1774065042990,-153.57,0.00028817,2]
[408659035,1774065043001,-208.0,0.00028936,120]
[408659036,1774065043010,-162.0,0.00028936,120]
[408659037,1774065043020,-162.0,0.00028956,120]
[408659038,1774065043030,-163.0,0.00028956,120]
[408659039,1774065043039,-251.17975102,0.00029186,2]
[408659040,1774065043049,-326.24637333,0.00029207,2]
[408659041,1774065043059,-1011.0,0.00029221,120]
[408659042,1774065043069,-708.0,0.00029221,120]
[408659043,1774065043079,-496.0,0.00029221,120]
[408659044,1774065043089,-347.0,0.00029221,120]
[408659045,1774065043099,-3261.56809751,0.00029233,2]
[408659046,1774065043108,-3718.9027003,0.00029295,41]
[408659047,1774065043118,-351.54,0.00029875,2]
[408659048,1774065043128,-216.40757701,0.000299,2]
[408659049,1774065043138,-150.0,0.0003,2]
[408659050,1774065043149,-2000.0,0.000303,2]
[408659051,1774065043158,-208.0,0.00030383,120]
[408659052,1774065043167,-162.0,0.00030383,120]
[408659053,1774065043177,-162.0,0.00030404,120]
[408659054,1774065043188,-163.0,0.00030404,120]
[408659055,1774065043199,-1258.97084529,0.00030512,2]
[408659056,1774065043209,-347.0,0.00030682,120]
[408659057,1774065043219,-3856.89522524,0.0003074,45]
[408659058,1774065043228,-151.0,0.00031,14]
[408659059,1774065043237,-162.85,0.00031,42]
[408659060,1774065043247,-979.16666667,0.00031,120]
[408659061,1774065043256,-319.08,0.00031,120]
[408659062,1774065043265,-7000.0,0.0003123,60]
[408659063,1774065043274,-177.98,0.00031251,120]
[408659064,1774065043283,-256.70914559,0.00031454,2]
[408659065,1774065043293,-4948.32341729,0.00031455,2]
[408659067,1774065043302,-504.73559327,0.00031455,2]
[408659069,1774065043311,-391.67896085,0.00031455,2]
[408659071,1774065043320,-1466.32548434,0.00031455,2]
[408659072,1774065043330,-300.0,0.00031456,7]
[408659073,1774065043340,-3261.56809751,0.000319,2]
[408659074,1774065043349,-251.17975102,0.00032103,2]
[408659075,1774065043358,-4259.66950899,0.00032184,49]
[408659076,1774065043367,-1000.0,0.00033532,30]
[408659077,1774065043376,-903.48,0.00033616,7]
[408659078,1774065043389,-224.57,0.00033616,7]
[408659079,1774065043399,-4269.05287135,0.00033628,53]
[408659080,1774065043408,-326.24637333,0.00033651,2]
[408659081,1774065043418,-2000.0,0.00034,2]
[408659082,1774065043428,-3261.56809751,0.00034567,2]
[408659083,1774065043438,-2001.67920739,0.000347,120]
[408659084,1774065043447,-500.50014501,0.000347,120]
[408659085,1774065043458,-251.17975102,0.00035021,2]
[408659086,1774065043468,-152.0,0.00035314,4]
[408659087,1774065043478,-154.15962459,0.00035314,5]
[408659088,1774065043487,-153.57,0.00035667,2]
[408659089,1774065043496,-168.04356024,0.00036,120]
[408659090,1774065043506,-400.0,0.0003617,2]
[408659091,1774065043516,-500.0,0.0003617,2]
[408659092,1774065043526,-4819.39879599,0.00036517,60]
[408659093,1774065043535,-256.70914559,0.00036639,2]
[408659094,1774065043544,-3261.56809751,0.00037233,2]
[408659095,1774065043554,-2000.0,0.000377,2]
[408659096,1774065043563,-251.17975102,0.00037938,2]
[408659097,1774065043572,-5055.9110618,0.00037961,64]
[408659098,1774065043581,-326.24637333,0.00038096,2]
[408659099,1774065043591,-305.51734344,0.000381,33]
[408659100,1774065043600,-903.48,0.00038659,7]
[408659101,1774065043609,-300.0,0.00038834,2]
[408659102,1774065043618,-153.69257771,0.00039,120]
[408659103,1774065043627,-1258.97084529,0.00039059,2]
[408659104,1774065043636,-1000.0,0.000395,2]
[408659105,1774065043645,-504.13734187,0.00039726,120]
[408659106,1774065043655,-3261.56809751,0.000399,15]
[408659107,1774065043664,-500.0,0.0003997,2]
[408659108,1774065043674,-151.0,0.00039997,14]
[408659109,1774065043684,-151.0,0.00039997,14]
[408659110,1774065043693,-300.0,0.00039999,10]
[408659111,1774065043702,-300.0,0.00039999,10]
[408659112,1774065043711,-528.9185889,0.0004,120]
[408659113,1774065043720,-172482.26827403,0.0004,100]
[408659114,1774065045494,-1500.0,0.000155,5]
[408659115,1774065045504,-3100.0,0.000156,5]
[408659116,1774065045514,-165.0,0.00032464,30]
[408659117,1774065045524,-165.0,0.00033464,30]
[408659118,1774065045533,-165.0,0.00034464,30]
[408659119,1774065045543,-29481.65977339,0.0004,100]
[408659120,1774065045553,-1042.34662462,0.0004,20]
[408659121,1774065045563,-1135.54199897,0.0004,120]
[408659122,1774065045572,-159.0,0.0004,120]
[408659123,1774065045581,-168.0,0.0004,120]
[408659124,1774065045590,-200.0,0.0004,5]
[408659125,1774065045599,-200.0,0.0004,7]
[408659126,1774065045608,-1721.13340048,0.0004,120]
[408659127,1774065045626,-3278.86659952,0.0004,120]
[408659128,1774065045636,-5000.0,0.0004,120]
[408659129,1774065045645,-4611.79160972,0.0004,120]
[408659130,1774065045656,-388.20839028,0.0004,120]
[408659131,1774065045665,-5000.0,0.0004,120]
[408659132,1774065045674,-5000.0,0.0004,120]
[408659133,1774065045683,-1152.14555142,0.0004,120]
[408659134,1774065045869,-311.95472696,0.0004,120]
[408659140,1774065795729,11595.3,0.00016299,120]
[408659141,1774065870284,35590.0,0.00016,120]
[408659149,1774066231761,-219.77627619,0.00014372,2]
[408659150,1774066231772,-187.22372381,0.00014373,2]
[408659151,1774066231784,-32.55255238,0.00014373,2]
[408659152,1774066231801,-219.77627619,0.00014373,2]
[408659153,1774066231811,-43.6711714,0.000144,2]
[408659154,1774066231823,-106.3288286,0.000144,2]
[408659155,1774066231833,-254.25343401,0.000144,2]
[408659156,1774066231843,-150.0,0.00014472,2]
[408659157,1774066231852,-300.0,0.00014472,2]
[408659158,1774066231862,-1200.0,0.00014472,2]
[408659160,1774066231873,-300.0,0.00014472,2]
[408659161,1774066231882,-7767.86145051,0.00014473,2]
[408659164,1774066231893,-70606.96264949,0.00014473,2]
[408659166,1774066231903,-500.0,0.00014473,2]
[408659168,1774066231912,-500.0,0.00014473,2]
[408659170,1774066231922,-1000.0,0.000145,2]
[408659172,1774066231931,-226.06177599,0.000145,2]
[408659174,1774066231940,-503.2708626,0.00014573,2]
[408659175,1774066231949,-500.0,0.00014573,2]
[408659177,1774066231958,-500.39343918,0.00014573,2]
[408659179,1774066231968,-1000.0,0.000146,2]
[408659181,1774066231977,-464.29354909,0.00015,10]
[408659183,1774066231987,-255.0,0.000156,2]
[408659184,1774066231996,-600.0,0.00015809,2]
[408659185,1774066232006,-2500.0,0.0001584,2]
[408659186,1774066232016,-2500.0,0.0001584,2]
[408659187,1774066232026,-300.0,0.0001584,2]
[408659188,1774066232036,-600.0,0.0001584,2]
[408659189,1774066232045,-187.0,0.00015847,2]
[408659190,1774066232055,-752.0,0.00015879,2]
[408659191,1774066232064,-1680.0,0.00015919,2]
[408659192,1774066232073,-661.28215933,0.00015991,2]
[408659193,1774066232084,-90.71784067,0.00015991,2]
[408659194,1774066232093,-752.0,0.00016082,2]
[408659195,1774066232102,-150.0,0.00016136,14]
[408659196,1774066232111,-752.0,0.00016137,2]
[408659197,1774066232119,-752.0,0.00016223,2]
[408659198,1774066232129,-752.0,0.00016256,2]
[408659199,1774066232138,-534.87903961,0.00016352,2]
[408659200,1774066232148,-217.12096039,0.00016352,2]
[408659201,1774066232157,-232.85216684,0.00016356,2]
[408659202,1774066232175,-519.14783316,0.00016356,2]
[408659203,1774066232183,-409.68422866,0.00016402,2]
[408659205,1774066237860,-342.31577134,0.00016402,2]
[408659206,1774066237870,-752.0,0.00016469,2]
[408659207,1774066237880,-752.0,0.00016581,2]
[408659208,1774066237890,-752.0,0.00016636,2]
[408659211,1774066238090,-752.0,0.00016689,2]
[408659213,1774066238100,-752.0,0.00016749,2]
[408659215,1774066238110,-752.0,0.00016756,2]
[408659217,1774066238119,-752.0,0.00016798,2]
[408659219,1774066238128,-85.59222866,0.00016834,2]
[408659222,1774066238150,-666.40777134,0.00016834,2]
[408659223,1774066238160,-752.0,0.00016862,2]
[408659224,1774066238171,-135.65526373,0.00016949,2]
[408659230,1774066240016,-616.34473627,0.00016949,2]
[408659231,1774066240026,-752.0,0.00016966,2]
[408659232,1774066240035,-752.0,0.00017016,2]
[408659233,1774066240045,-154.79855358,0.00017031,2]
[408659234,1774066240054,-752.0,0.00017126,2]
[408659235,1774066240064,-752.0,0.00017289,2]
[408659236,1774066240074,-752.0,0.00017305,2]
[408659237,1774066240083,-752.0,0.00017412,2]
[408659238,1774066240093,-180.0,0.00017511,2]
[408659239,1774066240103,-226.06177591,0.00018109,2]
[408659240,1774066240113,-440.81,0.00020632,2]
[408659241,1774066240123,-979.16666667,0.00020863,2]
[408659242,1774066240132,-440.82152138,0.00021664,2]
[408659243,1774066240142,-226.06177591,0.00021718,2]
[408659244,1774066240152,-150.0,0.00021781,2]
[408659245,1774066240162,-170.66669499,0.00021781,2]
[408659246,1774066240172,-156.0,0.00022,2]
[408659247,1774066240181,-500.0,0.00022726,2]
[408659248,1774066240191,-500.0,0.00022726,2]
[408659249,1774066240201,-500.0,0.00022726,2]
[408659250,1774066240210,-500.0,0.00022726,2]
[408659251,1774066240221,-319.07941767,0.00022726,2]
[408659252,1774066240231,-500.0,0.00022726,2]
[408659253,1774066240240,-500.0,0.00022726,2]
[408659254,1774066240250,-500.0,0.00022726,2]
[408659255,1774066240259,-389.47246343,0.00022726,2]
[408659256,1774066240268,-500.0,0.00022999,2]
[408659257,1774066240277,-414.1465434,0.00022999,2]
[408659258,1774066240287,-2000.0,0.00023,2]
[408659259,1774066240296,-156.0,0.00023,2]
[408659260,1774066240306,-2000.0,0.0002327,2]
[408659261,1774066240315,-362.72,0.00023276,2]
[408659262,1774066240325,-2000.0,0.000233,2]
[408659263,1774066240334,-200.0,0.00023764,2]
[408659264,1774066240343,-916.0,0.00023774,10]
[408659265,1774066240353,-304.0,0.00023774,10]
[408659266,1774066240363,-150.25811759,0.00023798,5]
[408659267,1774066240372,-156.0,0.00024,2]
[408659268,1774066240382,-8034.28666536,0.00024223,2]
[408659269,1774066240392,-1667.802,0.000245,7]
[408659270,1774066240401,-177.98,0.00024876,120]
[408659271,1774066240410,-163.0,0.00025,2]
[408659272,1774066240420,-226.06177591,0.00025326,2]
[408659273,1774066240430,-998.0,0.000257,2]
[408659274,1774066240439,-2000.0,0.00026179,2]
[408659275,1774066240449,-515.07,0.00026208,2]
[408659276,1774066240458,-2000.0,0.000267,2]
[408659277,1774066240468,-515.07,0.00026863,2]
[408659278,1774066240478,-2000.0,0.00027,2]
[408659279,1774066240487,-186.259,0.00027166,7]
[408659280,1774066240498,-186.259,0.00027174,7]
[408659281,1774066240508,-300.0,0.00027397,2]
[408659282,1774066240519,-515.07,0.00027519,2]
[408659283,1774066240529,-515.07,0.00028174,2]
[408659284,1774066240539,-515.07,0.00028829,2]
[408659285,1774066240548,-13040.23,0.00028905,10]
[408659286,1774066240558,-979.16666667,0.00028915,10]
[408659287,1774066240567,-226.06177591,0.00028935,2]
[408659288,1774066240577,-15648.28,0.00029012,10]
[408659289,1774066240587,-177.98,0.00029022,120]
[408659291,1774066240596,-2000.0,0.00029088,2]
[408659292,1774066240606,-500.31653257,0.00029667,5]
[408659293,1774066240615,-354.35471593,0.00029905,2]
[408659294,1774066240625,-350.435836,0.0003016,14]
[408659295,1774066240634,-2000.0,0.000304,2]
[408659296,1774066240643,-2000.0,0.000307,2]
[408659298,1774066240653,-10866.86,0.00030766,10]
[408659299,1774066240663,-20379.11,0.00030776,2]
[408659300,1774066240674,-500.0,0.000308,5]
[408659301,1774066240684,-2000.0,0.00031997,2]
[408659302,1774066240695,-156.0,0.00032465,30]
[408659303,1774066240705,-226.06177591,0.00032544,2]
[408659304,1774066240715,-177.98,0.00033168,120]
[408659305,1774066240724,-156.0,0.00033465,30]
[408659306,1774066240734,-505.24689163,0.000336,5]
[408659307,1774066240743,-2000.0,0.000341,2]
[408659308,1774066240753,-2000.0,0.000344,2]
[408659309,1774066240762,-156.0,0.00034465,30]
[408659310,1774066240772,-1002.17,0.000347,120]
[408659311,1774066240782,-2000.0,0.00034906,2]
[408659312,1774066240791,-1008.76045792,0.00034999,30]
[408659313,1774066240805,-7005.0,0.00035,120]
[408659314,1774066240815,-362.72,0.00035056,2]
[408659315,1774066240825,-1144.0,0.00035464,5]
[408659316,1774066240835,-156.0,0.00035465,30]
[408659317,1774066240847,-152.0,0.00035652,3]
[408659318,1774066240857,-156.0,0.00036465,30]
[408659319,1774066240866,-1755.66,0.00036465,2]
[408659320,1774066240877,-1755.66,0.00036465,2]
[408659322,1774066240887,-1944.58,0.00036465,2]
[408659323,1774066240896,-1000.0,0.000367,120]
[408659324,1774066240906,-500.0,0.000367,120]
[408659325,1774066240915,-979.16666667,0.000367,120]
[408659326,1774066240925,-193.26486285,0.000372,120]
[408659327,1774066240935,-177.98,0.00037314,120]
[408659328,1774066240944,-156.0,0.00037465,30]
[408659329,1774066240954,-2000.0,0.000378,2]
[408659330,1774066240964,-305.51734344,0.000381,33]
[408659331,1774066240973,-1000.0,0.000381,2]
[408659332,1774066240983,-156.0,0.00038465,30]
[408659333,1774066240993,-1011.0,0.00038718,120]
[408659334,1774066241002,-708.0,0.00038718,120]
[408659335,1774066241011,-1258.97084529,0.00038771,2]
[408659336,1774066241021,-496.0,0.00038836,120]
[408659337,1774066241030,-297.0,0.00038836,120]
[408659338,1774066241039,-10000.0,0.00039,120]
[408659339,1774066241049,-2411.32250387,0.00039083,2]
[408659340,1774066241058,-550.07903471,0.00039203,67]
[408659341,1774066241067,-1182.33276875,0.00039203,120]
[408659342,1774066241076,-2935.41128784,0.00039255,2]
[408659343,1774066241086,-3169.2674817,0.00039355,2]
[408659344,1774066241095,-11612.5592322,0.00039355,2]
[408659345,1774066241104,-2975.4083499,0.00039355,2]
[408659346,1774066241114,-4849.0,0.00039564,30]
[408659347,1774066241123,-157.56924,0.0003957,115]
[408659348,1774066241133,-157.56924,0.0003957,115]
[408659349,1774066241143,-157.56924,0.0003957,115]
[408659350,1774066241152,-157.56924,0.0003957,115]
[408659351,1774066241161,-1000.0,0.0003997,2]
[408659352,1774066241171,-1000.0,0.0003997,2]
[408659353,1774066241180,-1000.0,0.0003997,2]
[408659354,1774066241189,-1000.0,0.0003997,2]
[408659355,1774066241199,-1000.0,0.0003997,2]
[408659356,1774066241208,-1000.0,0.0003997,2]
[408659357,1774066241216,-1000.0,0.0003997,2]
[408659358,1774066241225,-1000.0,0.0003997,2]
[408659359,1774066241235,-1000.0,0.0003997,2]
[408659360,1774066241244,-1000.0,0.0003997,2]
[408659361,1774066241259,-1000.0,0.0003997,2]
[408659362,1774066241269,-1000.0,0.0003997,2]
[408659363,1774066241278,-1000.0,0.0003997,2]
[408659364,1774066241287,-250.0,0.00039973,68]
[408659365,1774066241297,-500.0,0.00039999,20]
[408659366,1774066241307,-529.03054196,0.00039999,20]
[408659367,1774066241317,-500.0,0.00039999,20]
[408659368,1774066241327,-500.0,0.00039999,20]
[408659369,1774066241338,-500.0,0.00039999,20]
[408659370,1774066241348,-500.0,0.00039999,20]
[408659371,1774066241357,-500.0,0.00039999,20]
[408659372,1774066241366,-500.0,0.00039999,20]
[408659373,1774066241376,-500.0,0.00039999,20]
[408659374,1774066241385,-500.0,0.00039999,20]
[408659375,1774066241394,-500.0,0.00039999,20]
[408659376,1774066241403,-500.0,0.00039999,20]
[408659377,1774066241412,-500.0,0.00039999,20]
[408659378,1774066241422,-612.54706251,0.00039999,20]
[408659379,1774066241433,-158.77199828,0.00039999,20]
[408659380,1774066241444,-1425.0,0.0004,5]
[408659381,1774066241455,-3535.89972162,0.0004,120]
[408659382,1774066241465,-333.5,0.0004,120]
[408659383,1774066241474,-2698.0,0.0004,120]
[408659384,1774066241483,-153.29965778,0.0004,30]
[408659385,1774066241492,-200.0,0.0004,7]
[408659386,1774066241502,-300.0,0.0004,14]
[408659387,1774066241512,-3658.78229122,0.0004,120]
[408659388,1774066241521,-200.0,0.0004,10]
[408659389,1774066241531,-232.08,0.0004,120]
[408659390,1774066241541,-172485.78831999,0.0004,60]
[408659391,1774066241551,-300.0,0.000401,10]
[408659392,1774066241560,-1314.39,0.00040104,7]
[408659393,1774066241570,-207.62,0.00040104,7]
[408659394,1774066241579,-2935.41128775,0.00040113,15]
[408659395,1774066241590,-200.0,0.000404,7]
[408659396,1774066241600,-22906.1110244,0.0004044,2]
[408659397,1774066241612,-1011.0,0.00040654,120]
[408659398,1774066241621,-708.0,0.00040654,120]
[408659399,1774066241631,-496.0,0.00040778,120]
[408659400,1774066241640,-297.0,0.00040778,120]
[408659401,1774066241650,-1300.0,0.000408,14]
[408659402,1774066241659,-5421.45728684,0.0004085,71]
[408659403,1774066241668,-2600.0,0.000409,14]
[408659404,1774066241678,-4190.75274206,0.0004095,60]
[408659407,1774066242871,-226.06177591,0.00036153,2]
[408659408,1774066242882,-240.72722709,0.0004095,60]
[408659409,1774066242961,-713.11239565,0.0004095,60]
[408659410,1774066243014,-503.0,0.0004095,60]
[408659421,1774066245954,-17522.44887861,0.0004095,60]
[408659431,1774067431845,-936.32565,0.000143,2]
[408659433,1774067431854,-180.0,0.00014372,2]
[408659435,1774067431864,-805.65282326,0.00014373,2]
[408659437,1774067431904,-303.72702952,0.00014373,2]
[408659438,1774067431959,-1319.98203148,0.00014373,2]
[408659439,1774067431970,-933.29910589,0.00014373,2]
[408659454,1774067438032,-16437.20481205,0.00014373,2]
[408659455,1774067438044,-81987.19744168,0.00014373,2]
[408659456,1774067438057,-443.21634454,0.00014373,2]
[408659457,1774067438147,-653.07,0.00014373,2]
[408659459,1774067438159,-1120.43290127,0.00014373,2]
[408659506,1774067440364,-25935.9643885,0.00014373,2]
[408659507,1774067440376,-9542.72192181,0.00014373,2]
[408659508,1774067440386,-180.8494208,0.00014373,2]
[408659509,1774067440396,-1000.0,0.00014473,2]
[408659510,1774067440407,-180.84942072,0.00014965,2]
[408659511,1774067440416,-4991.31325531,0.00015,2]
[408659512,1774067440427,-68.07036657,0.00015,2]
[408659513,1774067440437,-1300.0,0.000154,5]
[408659514,1774067440446,-2600.0,0.000155,5]
[408659515,1774067440456,-180.84942072,0.00015557,2]
[408659516,1774067440465,-4000.0,0.000156,5]
[408659517,1774067440475,-166.66,0.00015666,2]
[408659518,1774067440484,-5300.0,0.000157,5]
[408659519,1774067440493,-6700.0,0.000158,5]
[408659520,1774067440502,-1300.0,0.000159,5]
[408659521,1774067440511,-547.66205236,0.000159,3]
[408659522,1774067440523,-1815.99397027,0.000159,3]
[408659523,1774067440537,-2767.06716707,0.000159,3]
[408659524,1774067440546,-2027.26546216,0.000159,3]
[408659525,1774067440556,-2314.03802234,0.000159,3]
[408659526,1774067440567,-1287.46375726,0.000159,3]
[408659527,1774067440577,-432.81515402,0.00015949,2]
[408659528,1774067440586,-336.49039552,0.00015949,2]
[408659529,1774067440598,-261.11930724,0.00015949,2]
[408659530,1774067440607,-977.5503229,0.00015949,2]
[408659531,1774067440616,-500.31653257,0.00015973,2]
[408659532,1774067440626,-501.36683039,0.00015973,2]
[408659533,1774067440636,-528.56877393,0.0001599,2]
[408659534,1774067440645,-528.56877393,0.0001599,2]
[408659535,1774067440655,-528.56877393,0.0001599,2]
[408659536,1774067440665,-166.66,0.00015996,2]
[408659537,1774067440675,-500.0,0.00015999,2]
[408659538,1774067440685,-558.86588819,0.00015999,2]
[408659540,1774067440696,-500.0,0.00015999,2]
[408659541,1774067440707,-180.15634693,0.00015999,2]
[408659542,1774067440719,-500.0,0.00015999,2]
[408659543,1774067440729,-397200.57857767,0.00016,2]
[408659544,1774067440744,-3749.88529281,0.00016,2]
[408659547,1774067442994,-1289.56372282,0.00016,2]
[408659548,1774067443006,-707519.99999966,0.00016,2]
[408659549,1774067443052,-2787.08561276,0.00016,2]
[408659550,1774067443063,-73755.62131467,0.00016,2]
[408659551,1774067443075,-1922.47786194,0.00016,2]
[408659552,1774067443086,-9046.20047806,0.00016,2]
[408659553,1774067443108,-1015.09233715,0.00016,2]
[408659561,1774067445919,-8232.4871133,0.00016,2]
[408659562,1774067445932,-503.58029,0.00016,2]
[408659563,1774067445980,-10366.23918468,0.00016,2]
[408659570,1774068632021,-1000.0,0.00014273,2]
[408659571,1774068632031,-300.0,0.000154,5]
[408659572,1774068632040,-180.8451534,0.00015407,2]
[408659573,1774068632049,-700.0,0.000155,5]
[408659574,1774068632058,-515.07,0.00015507,2]
[408659575,1774068632067,-1000.0,0.000156,5]
[408659576,1774068632076,-194.09687313,0.000157,2]
[408659577,1774068632085,-1400.0,0.000157,5]
[408659578,1774068632094,-180.8451534,0.00015795,2]
[408659579,1774068632103,-1000.0,0.000158,2]
[408659580,1774068632112,-1700.0,0.000158,5]
[408659581,1774068632121,-158.24324313,0.000158,2]
[408659582,1774068632130,-3510.65310726,0.0001585,2]
[408659583,1774068632141,-953.94191315,0.0001585,2]
[408659584,1774068632153,-69841.30677959,0.0001585,2]
[408659585,1774068632163,-515.07,0.00015895,2]
[408659586,1774068632173,-269.32603212,0.000159,3]
[408659587,1774068632181,-506.25143916,0.000159,3]
[408659588,1774068632190,-463.89701275,0.000159,3]
[408659589,1774068632199,-531.66371279,0.000159,3]
[408659591,1774068632208,-249.08075964,0.000159,3]
[408659593,1774068632217,-446.14002592,0.000159,3]
[408659594,1774068632230,-410.95834168,0.000159,3]
[408659595,1774068632240,-467.00388069,0.000159,3]
[408659596,1774068632250,-981.44212515,0.000159,2]
[408659598,1774068632270,-833.52582542,0.000159,2]
[408659600,1774068632281,-1526.40458596,0.000159,2]
[408659601,1774068632292,-761.19113398,0.000159,2]
[408659603,1774068632303,-1600.0,0.000159,2]
[408659605,1774068632314,-2584.1379276,0.000159,2]
[408659606,1774068632326,-4525.90168917,0.000159,2]
[408659607,1774068632343,-555.92102686,0.000159,2]
[408659610,1774068632354,-672.09,0.000159,2]
[408659623,1774068638128,-1074.39068528,0.00015582,2]
[408659624,1774068638138,-1074.23578605,0.00015582,2]
[408659625,1774068638148,-1085.13547246,0.00015582,2]
[408659627,1774068638158,-158.24324313,0.00015814,2]
[408659628,1774068638168,-10600.98064696,0.000159,2]
[408659629,1774068638180,-2002.09276178,0.000159,2]
[408659655,1774068640544,-1015.0937839,0.00015582,2]
[408659656,1774068640554,-1052.72420117,0.00015582,2]
[408659657,1774068640563,-61.74983615,0.00015829,2]